[Event "Titled Tuesday Blitz May 24 Early 2022"]
[White "Araujo Filho, Luiz Antonio Coel"]
[Black "Ambartsumova, Karina"]
[WhiteFideId "2130661"]
[BlackFideId "4166299"]
[WhiteElo "2247"]
[BlackElo "2262"]
[Result "1-0"]
[Round "03"]
[TimeControl "180+1"]
[Date "2022.05.25"]
[WhiteClock "0:00:11"]
[BlackClock "0:00:23"]

1. d4 {[%clk 0:03:00]}  Nf6 {[%clk 0:02:59]} 2. Nf3 {[%clk 0:02:59]}  g6 {[%clk 0:02:59]} 3. c4 {[%clk 0:02:59]}  Bg7 {[%clk 0:03:00]} 4. Nc3 {[%clk 0:02:59]}  O-O {[%clk 0:03:00]} 5. e4 {[%clk 0:02:59]}  d6 {[%clk 0:03:01]} 6. Be2 {[%clk 0:03:00]}  e5 {[%clk 0:03:01]} 7. dxe5 {[%clk 0:03:01]}  dxe5 {[%clk 0:03:01]} 8. O-O {[%clk 0:03:02]}  Qe7 {[%clk 0:02:54]} 9. Qc2 {[%clk 0:03:01]}  c6 {[%clk 0:02:54]} 10. Rd1 {[%clk 0:03:01]}  a5 {[%clk 0:02:47]} 11. Na4 {[%clk 0:02:41]}  Bg4 {[%clk 0:02:34]} 12. h3 {[%clk 0:02:29]}  Bxf3 {[%clk 0:02:33]} 13. Bxf3 {[%clk 0:02:29]}  Nbd7 {[%clk 0:02:24]} 14. Be3 {[%clk 0:02:26]}  b5 {[%clk 0:02:19]} 15. Nb6 {[%clk 0:02:15]}  Nxb6 {[%clk 0:02:01]} 16. Bxb6 {[%clk 0:02:14]}  Rfb8 {[%clk 0:02:01]} 17. Be3 {[%clk 0:01:59]}  b4 {[%clk 0:01:24]} 18. Rd2 {[%clk 0:01:40]}  Nd7 {[%clk 0:01:21]} 19. Rad1 {[%clk 0:01:34]}  Nc5 {[%clk 0:01:13]} 20. Rd6 {[%clk 0:01:32]}  Ne6 {[%clk 0:01:03]} 21. Rxc6 {[%clk 0:01:28]}  Rc8 {[%clk 0:01:01]} 22. Rxc8+ {[%clk 0:01:26]}  Rxc8 {[%clk 0:01:02]} 23. b3 {[%clk 0:01:24]}  Nd4 {[%clk 0:01:01]} 24. Bxd4 {[%clk 0:01:08]}  exd4 {[%clk 0:01:02]} 25. Qd3 {[%clk 0:01:06]}  Qc5 {[%clk 0:01:02]} 26. g3 {[%clk 0:01:04]}  h5 {[%clk 0:01:01]} 27. Kg2 {[%clk 0:01:04]}  Be5 {[%clk 0:00:59]} 28. Be2 {[%clk 0:01:03]}  Rd8 {[%clk 0:00:57]} 29. f4 {[%clk 0:01:03]}  Bg7 {[%clk 0:00:57]} 30. Bf3 {[%clk 0:01:03]}  f6 {[%clk 0:00:40]} 31. e5 {[%clk 0:00:54]}  fxe5 {[%clk 0:00:29]} 32. Qxg6 {[%clk 0:00:52]}  exf4 {[%clk 0:00:20]} 33. Bd5+ {[%clk 0:00:50]}  Kh8 {[%clk 0:00:17]} 34. Be4 {[%clk 0:00:47]}  Kg8 {[%clk 0:00:17]} 35. gxf4 {[%clk 0:00:23]}  Kf8 {[%clk 0:00:17]} 36. Bd5 {[%clk 0:00:20]}  Rxd5 {[%clk 0:00:17]} 37. cxd5 {[%clk 0:00:19]}  Qxd5+ {[%clk 0:00:18]} 38. Kh2 {[%clk 0:00:19]}  Qf3 {[%clk 0:00:16]} 39. Rg1 {[%clk 0:00:05]}  Qxf4+ {[%clk 0:00:16]} 40. Kh1 {[%clk 0:00:06]}  Qf3+ {[%clk 0:00:16]} 41. Qg2 {[%clk 0:00:06]}  Qxg2+ {[%clk 0:00:14]} 42. Rxg2 {[%clk 0:00:06]}  Be5 {[%clk 0:00:13]} 43. Rd2 {[%clk 0:00:04]}  Ke7 {[%clk 0:00:13]} 44. Kg2 {[%clk 0:00:05]}  Ke6 {[%clk 0:00:13]} 45. Kf3 {[%clk 0:00:05]}  Kd5 {[%clk 0:00:13]} 46. Rg2 {[%clk 0:00:04]}  h4 {[%clk 0:00:12]} 47. Ke2 {[%clk 0:00:03]}  Ke4 {[%clk 0:00:12]} 48. Rg4+ {[%clk 0:00:03]}  Bf4 {[%clk 0:00:12]} 49. Rxh4 {[%clk 0:00:03]}  d3+ {[%clk 0:00:13]} 50. Kd1 {[%clk 0:00:04]}  Ke3 {[%clk 0:00:11]} 51. Rxf4 {[%clk 0:00:03]}  Kxf4 {[%clk 0:00:11]} 52. Kd2 {[%clk 0:00:04]}  Kg3 {[%clk 0:00:11]} 53. Kxd3 {[%clk 0:00:05]}  Kxh3 {[%clk 0:00:12]} 54. Kc4 {[%clk 0:00:06]}  Kg4 {[%clk 0:00:13]} 55. Kb5 {[%clk 0:00:06]}  Kf3 {[%clk 0:00:14]} 56. Kxa5 {[%clk 0:00:07]}  Ke3 {[%clk 0:00:14]} 57. Kxb4 {[%clk 0:00:08]}  Kd3 {[%clk 0:00:15]} 58. a4 {[%clk 0:00:08]}  Kc2 {[%clk 0:00:16]} 59. a5 {[%clk 0:00:08]}  Kb2 {[%clk 0:00:17]} 60. a6 {[%clk 0:00:09]}  Kb1 {[%clk 0:00:18]} 61. a7 {[%clk 0:00:10]}  Kb2 {[%clk 0:00:19]} 62. a8=Q {[%clk 0:00:10]}  Kb1 {[%clk 0:00:20]} 63. Qb7 {[%clk 0:00:10]}  Kb2 {[%clk 0:00:21]} 64. Kc4 {[%clk 0:00:10]}  Kb1 {[%clk 0:00:22]} 65. b4 {[%clk 0:00:11]}  Kb2 {[%clk 0:00:23]} 66. Qg2+ {[%clk 0:00:11]}  Kb1 {[%clk 0:00:23]} 67. b5 {[%clk 0:00:11]} 1-0


[Site "https://www.chess.com"]

[Event "Titled Tuesday Blitz May 24 Early 2022"]
[White "Artemenko, Oleg"]
[Black "Lopez, Henry"]
[WhiteFideId "14201798"]
[BlackFideId "5203830"]
[WhiteElo "2287"]
[BlackElo "2177"]
[Result "1-0"]
[Round "03"]
[TimeControl "180+1"]
[Date "2022.05.25"]
[WhiteClock "0:01:52"]
[BlackClock "0:01:01"]

1. d4 {[%clk 0:03:00]}  Nf6 {[%clk 0:02:59]} 2. Nc3 {[%clk 0:03:01]}  d5 {[%clk 0:02:58]} 3. Bf4 {[%clk 0:03:01]}  a6 {[%clk 0:02:58]} 4. e3 {[%clk 0:03:01]}  c5 {[%clk 0:02:58]} 5. dxc5 {[%clk 0:03:02]}  e6 {[%clk 0:02:57]} 6. Na4 {[%clk 0:03:03]}  Bxc5 {[%clk 0:02:55]} 7. Nxc5 {[%clk 0:03:04]}  Qa5+ {[%clk 0:02:55]} 8. c3 {[%clk 0:03:05]}  Qxc5 {[%clk 0:02:55]} 9. Nf3 {[%clk 0:03:06]}  Nc6 {[%clk 0:02:55]} 10. Bd3 {[%clk 0:03:04]}  h6 {[%clk 0:02:54]} 11. O-O {[%clk 0:03:04]}  Nh5 {[%clk 0:02:51]} 12. Be5 {[%clk 0:02:59]}  Nxe5 {[%clk 0:02:49]} 13. Nxe5 {[%clk 0:03:00]}  Nf6 {[%clk 0:02:49]} 14. a4 {[%clk 0:02:58]}  O-O {[%clk 0:02:47]} 15. a5 {[%clk 0:02:58]}  Qc7 {[%clk 0:02:40]} 16. f4 {[%clk 0:02:56]}  Bd7 {[%clk 0:02:37]} 17. Rf3 {[%clk 0:02:52]}  Bc6 {[%clk 0:02:32]} 18. Rg3 {[%clk 0:02:52]}  Kh8 {[%clk 0:02:29]} 19. Bc2 {[%clk 0:02:50]}  Rad8 {[%clk 0:02:22]} 20. Rh3 {[%clk 0:02:48]}  Kg8 {[%clk 0:02:14]} 21. Qe2 {[%clk 0:02:41]}  Bb5 {[%clk 0:02:12]} 22. Qf3 {[%clk 0:02:41]}  Ne4 {[%clk 0:01:55]} 23. Qh5 {[%clk 0:02:25]}  f5 {[%clk 0:01:50]} 24. Bxe4 {[%clk 0:02:20]}  dxe4 {[%clk 0:01:49]} 25. Rg3 {[%clk 0:02:20]}  Rf6 {[%clk 0:01:49]} 26. Rg6 {[%clk 0:02:18]}  Be8 {[%clk 0:01:40]} 27. g4 {[%clk 0:01:53]}  Bxg6 {[%clk 0:01:37]} 28. Nxg6 {[%clk 0:01:54]}  Qf7 {[%clk 0:01:30]} 29. Ne5 {[%clk 0:01:54]}  Qxh5 {[%clk 0:01:28]} 30. gxh5 {[%clk 0:01:55]}  Rff8 {[%clk 0:01:27]} 31. Rf1 {[%clk 0:01:55]}  Rd2 {[%clk 0:01:26]} 32. Rf2 {[%clk 0:01:55]}  Rfd8 {[%clk 0:01:24]} 33. Nc4 {[%clk 0:01:55]}  Rxf2 {[%clk 0:01:20]} 34. Kxf2 {[%clk 0:01:56]}  Kf7 {[%clk 0:01:18]} 35. Ke2 {[%clk 0:01:56]}  Kf6 {[%clk 0:01:18]} 36. Ne5 {[%clk 0:01:55]}  Rd5 {[%clk 0:01:16]} 37. b4 {[%clk 0:01:55]}  Rxe5 {[%clk 0:01:14]} 38. fxe5+ {[%clk 0:01:56]}  Kxe5 {[%clk 0:01:14]} 39. c4 {[%clk 0:01:57]}  f4 {[%clk 0:01:13]} 40. exf4+ {[%clk 0:01:56]}  Kxf4 {[%clk 0:01:13]} 41. b5 {[%clk 0:01:56]}  Ke5 {[%clk 0:01:05]} 42. Ke3 {[%clk 0:01:48]}  Kd6 {[%clk 0:01:00]} 43. Kd4 {[%clk 0:01:47]}  e5+ {[%clk 0:00:57]} 44. Kxe4 {[%clk 0:01:47]}  Kc5 {[%clk 0:00:57]} 45. bxa6 {[%clk 0:01:45]}  bxa6 {[%clk 0:00:56]} 46. Kxe5 {[%clk 0:01:46]}  Kxc4 {[%clk 0:00:57]} 47. Ke6 {[%clk 0:01:46]}  Kb5 {[%clk 0:00:57]} 48. Kf7 {[%clk 0:01:47]}  Kxa5 {[%clk 0:00:57]} 49. Kxg7 {[%clk 0:01:48]}  Kb5 {[%clk 0:00:58]} 50. Kxh6 {[%clk 0:01:49]}  a5 {[%clk 0:00:59]} 51. Kg6 {[%clk 0:01:49]}  a4 {[%clk 0:01:00]} 52. h6 {[%clk 0:01:50]}  a3 {[%clk 0:01:00]} 53. h7 {[%clk 0:01:51]}  a2 {[%clk 0:01:01]} 54. h8=Q {[%clk 0:01:52]} 1-0


[Site "https://www.chess.com"]

[Event "Titled Tuesday Blitz May 24 Early 2022"]
[White "Bachmann, Axel"]
[Black "Chernomordik, Pavel"]
[WhiteFideId "3700488"]
[BlackFideId "2804530"]
[WhiteElo "2587"]
[BlackElo "2220"]
[Result "1-0"]
[Round "03"]
[TimeControl "180+1"]
[Date "2022.05.25"]
[WhiteClock "0:00:36"]
[BlackClock "0:00:08"]

1. e4 {[%clk 0:02:55]}  g6 {[%clk 0:02:59]} 2. d4 {[%clk 0:02:54]}  Bg7 {[%clk 0:02:58]} 3. Nf3 {[%clk 0:02:54]}  d6 {[%clk 0:02:58]} 4. Bc4 {[%clk 0:02:54]}  e6 {[%clk 0:02:58]} 5. Qe2 {[%clk 0:02:53]}  b6 {[%clk 0:02:53]} 6. Nc3 {[%clk 0:02:53]}  Bb7 {[%clk 0:02:50]} 7. Bg5 {[%clk 0:02:52]}  Ne7 {[%clk 0:02:50]} 8. h4 {[%clk 0:02:49]}  h6 {[%clk 0:02:49]} 9. Bf4 {[%clk 0:02:44]}  a6 {[%clk 0:02:47]} 10. a4 {[%clk 0:02:44]}  Nd7 {[%clk 0:02:46]} 11. Rd1 {[%clk 0:02:43]}  Qc8 {[%clk 0:02:29]} 12. Bg3 {[%clk 0:02:28]}  Ra7 {[%clk 0:02:20]} 13. h5 {[%clk 0:02:27]}  g5 {[%clk 0:02:19]} 14. Nh2 {[%clk 0:02:27]}  Qa8 {[%clk 0:02:15]} 15. f3 {[%clk 0:02:25]}  e5 {[%clk 0:02:06]} 16. d5 {[%clk 0:02:20]}  Nf6 {[%clk 0:02:01]} 17. Ng4 {[%clk 0:02:15]}  Bc8 {[%clk 0:01:59]} 18. Ne3 {[%clk 0:02:11]}  Bd7 {[%clk 0:01:50]} 19. Bf2 {[%clk 0:02:11]}  Qc8 {[%clk 0:01:43]} 20. a5 {[%clk 0:02:06]}  b5 {[%clk 0:01:42]} 21. Bd3 {[%clk 0:02:03]}  Rb7 {[%clk 0:01:41]} 22. Na2 {[%clk 0:02:01]}  O-O {[%clk 0:01:32]} 23. Nb4 {[%clk 0:01:41]}  Rb8 {[%clk 0:01:28]} 24. c3 {[%clk 0:01:39]}  Ne8 {[%clk 0:01:23]} 25. g3 {[%clk 0:01:33]}  f5 {[%clk 0:01:22]} 26. exf5 {[%clk 0:01:26]}  Nxf5 {[%clk 0:01:22]} 27. Nxf5 {[%clk 0:01:26]}  Bxf5 {[%clk 0:01:21]} 28. Nc6 {[%clk 0:01:22]}  Bxd3 {[%clk 0:01:10]} 29. Rxd3 {[%clk 0:01:23]}  Rf7 {[%clk 0:01:08]} 30. Nxb8 {[%clk 0:01:21]}  Qxb8 {[%clk 0:01:08]} 31. b4 {[%clk 0:01:10]}  Qc8 {[%clk 0:01:02]} 32. Kf1 {[%clk 0:01:04]}  c6 {[%clk 0:00:58]} 33. dxc6 {[%clk 0:01:00]}  Qxc6 {[%clk 0:00:57]} 34. Qe4 {[%clk 0:01:01]}  Qc8 {[%clk 0:00:52]} 35. Kg2 {[%clk 0:00:58]}  Nf6 {[%clk 0:00:51]} 36. Qg6 {[%clk 0:00:56]}  Rd7 {[%clk 0:00:46]} 37. Rhd1 {[%clk 0:00:55]}  Qc6 {[%clk 0:00:44]} 38. Qf5 {[%clk 0:00:55]}  e4 {[%clk 0:00:38]} 39. Qe6+ {[%clk 0:00:46]}  Kh8 {[%clk 0:00:33]} 40. Rxd6 {[%clk 0:00:42]}  exf3+ {[%clk 0:00:32]} 41. Kg1 {[%clk 0:00:41]}  Rxd6 {[%clk 0:00:28]} 42. Rxd6 {[%clk 0:00:42]}  Qc7 {[%clk 0:00:22]} 43. Bb6 {[%clk 0:00:36]}  Qxc3 {[%clk 0:00:08]} 44. Rd8+ {[%clk 0:00:36]} 1-0


[Site "https://www.chess.com"]

[Event "Titled Tuesday Blitz May 24 Early 2022"]
[White "Bacrot, Etienne"]
[Black "Vo, Thi Kim Phung"]
[WhiteFideId "605506"]
[BlackFideId "12401838"]
[WhiteElo "2673"]
[BlackElo "2261"]
[Result "1-0"]
[Round "03"]
[TimeControl "180+1"]
[Date "2022.05.25"]
[WhiteClock "0:00:13"]
[BlackClock "0:00:06"]

1. d4 {[%clk 0:03:00]}  Nf6 {[%clk 0:02:59]} 2. Nf3 {[%clk 0:03:00]}  d5 {[%clk 0:02:57]} 3. Bf4 {[%clk 0:02:59]}  c5 {[%clk 0:02:56]} 4. e3 {[%clk 0:02:59]}  Nc6 {[%clk 0:02:57]} 5. Nbd2 {[%clk 0:02:59]}  cxd4 {[%clk 0:02:46]} 6. exd4 {[%clk 0:02:59]}  Bf5 {[%clk 0:02:46]} 7. c3 {[%clk 0:02:49]}  e6 {[%clk 0:02:37]} 8. Qb3 {[%clk 0:02:46]}  Qb6 {[%clk 0:02:37]} 9. Nh4 {[%clk 0:02:37]}  Be4 {[%clk 0:02:25]} 10. f3 {[%clk 0:02:24]}  Bg6 {[%clk 0:02:14]} 11. Nxg6 {[%clk 0:02:19]}  hxg6 {[%clk 0:02:14]} 12. Qxb6 {[%clk 0:02:18]}  axb6 {[%clk 0:02:15]} 13. Bc7 {[%clk 0:02:16]}  Nd7 {[%clk 0:02:14]} 14. Bd3 {[%clk 0:02:09]}  Be7 {[%clk 0:02:07]} 15. Ke2 {[%clk 0:02:02]}  Bd8 {[%clk 0:02:02]} 16. Bg3 {[%clk 0:02:01]}  Bf6 {[%clk 0:01:44]} 17. a3 {[%clk 0:01:52]}  Be7 {[%clk 0:01:24]} 18. h4 {[%clk 0:01:18]}  Nf6 {[%clk 0:01:24]} 19. Bf2 {[%clk 0:01:14]}  Nh5 {[%clk 0:01:16]} 20. g3 {[%clk 0:01:12]}  Bd6 {[%clk 0:01:08]} 21. Rhg1 {[%clk 0:01:06]}  Ke7 {[%clk 0:01:06]} 22. Rae1 {[%clk 0:01:00]}  Kd7 {[%clk 0:01:00]} 23. Kf1 {[%clk 0:00:48]}  Rae8 {[%clk 0:00:43]} 24. Kg2 {[%clk 0:00:48]}  Kc7 {[%clk 0:00:41]} 25. Rc1 {[%clk 0:00:47]}  Kb8 {[%clk 0:00:41]} 26. c4 {[%clk 0:00:47]}  Bc7 {[%clk 0:00:36]} 27. c5 {[%clk 0:00:26]}  bxc5 {[%clk 0:00:36]} 28. dxc5 {[%clk 0:00:24]}  e5 {[%clk 0:00:29]} 29. b4 {[%clk 0:00:24]}  f5 {[%clk 0:00:29]} 30. b5 {[%clk 0:00:25]}  Na5 {[%clk 0:00:20]} 31. b6 {[%clk 0:00:25]}  Bd8 {[%clk 0:00:20]} 32. Bb5 {[%clk 0:00:25]}  Nc6 {[%clk 0:00:20]} 33. Bxc6 {[%clk 0:00:25]}  bxc6 {[%clk 0:00:21]} 34. Nb3 {[%clk 0:00:23]}  f4 {[%clk 0:00:16]} 35. g4 {[%clk 0:00:23]}  Ng3 {[%clk 0:00:15]} 36. Bxg3 {[%clk 0:00:21]}  fxg3 {[%clk 0:00:16]} 37. Rh1 {[%clk 0:00:21]}  e4 {[%clk 0:00:16]} 38. Na5 {[%clk 0:00:19]}  exf3+ {[%clk 0:00:15]} 39. Kxg3 {[%clk 0:00:18]}  Re6 {[%clk 0:00:14]} 40. g5 {[%clk 0:00:18]}  Rf8 {[%clk 0:00:14]} 41. Rcf1 {[%clk 0:00:18]}  d4 {[%clk 0:00:13]} 42. Rxf3 {[%clk 0:00:17]}  Rxf3+ {[%clk 0:00:13]} 43. Kxf3 {[%clk 0:00:18]}  Re3+ {[%clk 0:00:13]} 44. Kf4 {[%clk 0:00:17]}  Rxa3 {[%clk 0:00:13]} 45. Nxc6+ {[%clk 0:00:17]}  Kc8 {[%clk 0:00:14]} 46. b7+ {[%clk 0:00:17]}  Kxb7 {[%clk 0:00:14]} 47. Nxd8+ {[%clk 0:00:18]}  Kc7 {[%clk 0:00:14]} 48. Ne6+ {[%clk 0:00:18]}  Kc6 {[%clk 0:00:15]} 49. Nxd4+ {[%clk 0:00:18]}  Kxc5 {[%clk 0:00:15]} 50. Nf3 {[%clk 0:00:19]}  Ra4+ {[%clk 0:00:15]} 51. Kg3 {[%clk 0:00:19]}  Kd5 {[%clk 0:00:15]} 52. Re1 {[%clk 0:00:19]}  Kd6 {[%clk 0:00:14]} 53. Re8 {[%clk 0:00:19]}  Ra7 {[%clk 0:00:12]} 54. Kf4 {[%clk 0:00:19]}  Ra4+ {[%clk 0:00:12]} 55. Re4 {[%clk 0:00:18]}  Ra7 {[%clk 0:00:12]} 56. Ne5 {[%clk 0:00:18]}  Ke6 {[%clk 0:00:11]} 57. Nxg6+ {[%clk 0:00:18]}  Kf7 {[%clk 0:00:11]} 58. Ne5+ {[%clk 0:00:18]}  Kg8 {[%clk 0:00:11]} 59. h5 {[%clk 0:00:18]}  Ra1 {[%clk 0:00:10]} 60. Nf3 {[%clk 0:00:18]}  Kf7 {[%clk 0:00:10]} 61. Rd4 {[%clk 0:00:18]}  Ke7 {[%clk 0:00:09]} 62. Kg3 {[%clk 0:00:17]}  Ra2 {[%clk 0:00:08]} 63. Rf4 {[%clk 0:00:17]}  Ke8 {[%clk 0:00:07]} 64. g6 {[%clk 0:00:17]}  Ra5 {[%clk 0:00:07]} 65. Kg4 {[%clk 0:00:17]}  Ra7 {[%clk 0:00:07]} 66. Nh4 {[%clk 0:00:16]}  Rb7 {[%clk 0:00:07]} 67. Nf5 {[%clk 0:00:15]}  Ra7 {[%clk 0:00:07]} 68. Nd6+ {[%clk 0:00:15]}  Kd8 {[%clk 0:00:06]} 69. Rf8+ {[%clk 0:00:14]}  Ke7 {[%clk 0:00:06]} 70. Rf7+ {[%clk 0:00:14]}  Ke6 {[%clk 0:00:06]} 71. Rxa7 {[%clk 0:00:13]} 1-0


[Site "https://www.chess.com"]

[Event "Titled Tuesday Blitz May 24 Early 2022"]
[White "Bagrationi, Alexander"]
[Black "Rustemov, Alexander"]
[WhiteFideId "14104954"]
[BlackFideId "4119002"]
[WhiteElo "2502"]
[BlackElo "2837"]
[Result "1-0"]
[Round "03"]
[TimeControl "180+1"]
[Date "2022.05.24"]
[WhiteClock "0:00:51"]
[BlackClock "0:00:02"]

1. d4 {[%clk 0:02:59]}  d5 {[%clk 0:02:58]} 2. c4 {[%clk 0:02:58]}  c6 {[%clk 0:02:58]} 3. Nf3 {[%clk 0:02:57]}  Nf6 {[%clk 0:02:57]} 4. e3 {[%clk 0:02:55]}  Bf5 {[%clk 0:02:56]} 5. Nc3 {[%clk 0:02:56]}  e6 {[%clk 0:02:56]} 6. Nh4 {[%clk 0:02:56]}  Be4 {[%clk 0:02:56]} 7. f3 {[%clk 0:02:56]}  Bg6 {[%clk 0:02:55]} 8. Nxg6 {[%clk 0:02:57]}  hxg6 {[%clk 0:02:54]} 9. g3 {[%clk 0:02:57]}  c5 {[%clk 0:02:33]} 10. dxc5 {[%clk 0:02:52]}  Bxc5 {[%clk 0:02:32]} 11. cxd5 {[%clk 0:02:29]}  exd5 {[%clk 0:02:30]} 12. Bb5+ {[%clk 0:02:27]}  Nc6 {[%clk 0:02:29]} 13. Qa4 {[%clk 0:02:21]}  Qb6 {[%clk 0:02:24]} 14. O-O {[%clk 0:02:14]}  O-O {[%clk 0:02:23]} 15. Kg2 {[%clk 0:02:11]}  Rfe8 {[%clk 0:02:19]} 16. Qb3 {[%clk 0:02:05]}  Bxe3 {[%clk 0:02:12]} 17. Na4 {[%clk 0:02:00]}  Qd4 {[%clk 0:01:59]} 18. Rd1 {[%clk 0:01:59]}  Qe5 {[%clk 0:01:58]} 19. Qxe3 {[%clk 0:01:53]}  Qxe3 {[%clk 0:01:57]} 20. Bxe3 {[%clk 0:01:54]}  Rxe3 {[%clk 0:01:57]} 21. Kf2 {[%clk 0:01:55]}  Rae8 {[%clk 0:01:54]} 22. Rd2 {[%clk 0:01:53]}  g5 {[%clk 0:01:41]} 23. g4 {[%clk 0:01:48]}  R3e5 {[%clk 0:01:11]} 24. Bxc6 {[%clk 0:01:42]}  bxc6 {[%clk 0:01:11]} 25. Rc1 {[%clk 0:01:42]}  R5e6 {[%clk 0:01:00]} 26. Nc5 {[%clk 0:01:38]}  R6e7 {[%clk 0:00:59]} 27. Nb3 {[%clk 0:01:36]}  Rc7 {[%clk 0:00:52]} 28. Rdc2 {[%clk 0:01:35]}  Rec8 {[%clk 0:00:48]} 29. Nd4 {[%clk 0:01:29]}  c5 {[%clk 0:00:48]} 30. Nb5 {[%clk 0:01:24]}  Re7 {[%clk 0:00:40]} 31. Rxc5 {[%clk 0:01:24]}  Rce8 {[%clk 0:00:37]} 32. Nd4 {[%clk 0:01:21]}  g6 {[%clk 0:00:30]} 33. Rc7 {[%clk 0:01:15]}  Kg7 {[%clk 0:00:28]} 34. Rxe7 {[%clk 0:01:11]}  Rxe7 {[%clk 0:00:28]} 35. b4 {[%clk 0:01:11]}  Rb7 {[%clk 0:00:22]} 36. b5 {[%clk 0:01:12]}  Nd7 {[%clk 0:00:21]} 37. a4 {[%clk 0:01:12]}  Nb6 {[%clk 0:00:20]} 38. a5 {[%clk 0:01:12]}  Nc4 {[%clk 0:00:21]} 39. a6 {[%clk 0:01:08]}  Rb6 {[%clk 0:00:20]} 40. Rb1 {[%clk 0:01:02]}  Nd6 {[%clk 0:00:18]} 41. Ke2 {[%clk 0:00:58]}  Kf6 {[%clk 0:00:18]} 42. Kd3 {[%clk 0:00:59]}  Ke5 {[%clk 0:00:12]} 43. Nc6+ {[%clk 0:00:58]}  Kf4 {[%clk 0:00:13]} 44. Nxa7 {[%clk 0:00:58]}  Kxf3 {[%clk 0:00:13]} 45. Kd4 {[%clk 0:00:57]}  Kxg4 {[%clk 0:00:11]} 46. Kc5 {[%clk 0:00:57]}  Nxb5 {[%clk 0:00:02]} 47. Kxb6 {[%clk 0:00:57]}  Nc3 {[%clk 0:00:03]} 48. Rg1+ {[%clk 0:00:56]}  Kf3 {[%clk 0:00:03]} 49. Nc6 {[%clk 0:00:57]}  Ne2 {[%clk 0:00:02]} 50. Rxg5 {[%clk 0:00:57]}  d4 {[%clk 0:00:02]} 51. a7 {[%clk 0:00:56]}  d3 {[%clk 0:00:01]} 52. a8=Q {[%clk 0:00:54]}  d2 {[%clk 0:00:02]} 53. Qa1 {[%clk 0:00:51]} 1-0


[Site "https://www.chess.com"]

[Event "Titled Tuesday Blitz May 24 Early 2022"]
[White "Barp, Alberto"]
[Black "Dubov, Daniil"]
[WhiteFideId "872555"]
[BlackFideId "24126055"]
[WhiteElo "2229"]
[BlackElo "2791"]
[Result "0-1"]
[Round "03"]
[TimeControl "180+1"]
[Date "2022.05.24"]
[WhiteClock "0:00:08"]
[BlackClock "0:00:05"]

1. d4 {[%clk 0:02:35]}  Nf6 {[%clk 0:02:59]} 2. Nf3 {[%clk 0:02:34]}  g6 {[%clk 0:02:58]} 3. g3 {[%clk 0:02:31]}  c5 {[%clk 0:02:56]} 4. dxc5 {[%clk 0:02:31]}  Qa5+ {[%clk 0:02:54]} 5. Nfd2 {[%clk 0:02:27]}  Qxc5 {[%clk 0:02:50]} 6. Bg2 {[%clk 0:02:21]}  Bg7 {[%clk 0:02:49]} 7. Nc3 {[%clk 0:02:21]}  h5 {[%clk 0:02:44]} 8. Nb3 {[%clk 0:02:19]}  Qc7 {[%clk 0:02:42]} 9. Bg5 {[%clk 0:02:19]}  h4 {[%clk 0:02:30]} 10. Bxf6 {[%clk 0:02:14]}  Bxf6 {[%clk 0:02:28]} 11. Nd5 {[%clk 0:02:14]}  Qd6 {[%clk 0:02:23]} 12. Nxf6+ {[%clk 0:02:13]}  Qxf6 {[%clk 0:02:23]} 13. Qd4 {[%clk 0:02:12]}  Qxd4 {[%clk 0:02:22]} 14. Nxd4 {[%clk 0:02:13]}  Nc6 {[%clk 0:02:22]} 15. O-O-O {[%clk 0:02:06]}  Kf8 {[%clk 0:02:19]} 16. Rhe1 {[%clk 0:01:36]}  Kg7 {[%clk 0:02:14]} 17. Nf3 {[%clk 0:01:33]}  h3 {[%clk 0:02:08]} 18. Bf1 {[%clk 0:01:33]}  d6 {[%clk 0:02:08]} 19. Nd4 {[%clk 0:01:31]}  Ne5 {[%clk 0:02:06]} 20. f3 {[%clk 0:01:31]}  Bd7 {[%clk 0:02:05]} 21. g4 {[%clk 0:01:25]}  g5 {[%clk 0:01:56]} 22. e3 {[%clk 0:01:21]}  Rac8 {[%clk 0:01:51]} 23. Be2 {[%clk 0:01:21]}  a5 {[%clk 0:01:43]} 24. Rg1 {[%clk 0:01:11]}  Rc5 {[%clk 0:01:35]} 25. Rg3 {[%clk 0:01:07]}  Nc4 {[%clk 0:01:18]} 26. Bxc4 {[%clk 0:01:03]}  Rxc4 {[%clk 0:01:19]} 27. b3 {[%clk 0:00:54]}  Rc5 {[%clk 0:01:15]} 28. Kb2 {[%clk 0:00:53]}  b5 {[%clk 0:01:13]} 29. Rc1 {[%clk 0:00:44]}  Kf6 {[%clk 0:01:10]} 30. a3 {[%clk 0:00:42]}  b4 {[%clk 0:01:07]} 31. c4 {[%clk 0:00:40]}  bxc3+ {[%clk 0:00:49]} 32. Rxc3 {[%clk 0:00:40]}  Rhc8 {[%clk 0:00:44]} 33. Rxc5 {[%clk 0:00:38]}  dxc5 {[%clk 0:00:45]} 34. Ne2 {[%clk 0:00:34]}  Bb5 {[%clk 0:00:36]} 35. Nc3 {[%clk 0:00:31]}  Bf1 {[%clk 0:00:35]} 36. Ne4+ {[%clk 0:00:26]}  Kg6 {[%clk 0:00:35]} 37. Nf2 {[%clk 0:00:26]}  c4 {[%clk 0:00:19]} 38. bxc4 {[%clk 0:00:24]}  Rxc4 {[%clk 0:00:19]} 39. Nxh3 {[%clk 0:00:23]}  Bd3 {[%clk 0:00:19]} 40. f4 {[%clk 0:00:18]}  f6 {[%clk 0:00:12]} 41. fxg5 {[%clk 0:00:17]}  fxg5 {[%clk 0:00:13]} 42. Rg2 {[%clk 0:00:14]}  Bf1 {[%clk 0:00:13]} 43. Rg3 {[%clk 0:00:12]}  Bxh3 {[%clk 0:00:09]} 44. Rxh3 {[%clk 0:00:12]}  Rxg4 {[%clk 0:00:10]} 45. Kb3 {[%clk 0:00:11]}  a4+ {[%clk 0:00:07]} 46. Kc3 {[%clk 0:00:11]}  Kf5 {[%clk 0:00:08]} 47. Rf3+ {[%clk 0:00:10]}  Ke4 {[%clk 0:00:07]} 48. Rf7 {[%clk 0:00:10]}  e5 {[%clk 0:00:07]} 49. h3 {[%clk 0:00:08]}  Rh4 {[%clk 0:00:07]} 50. Rg7 {[%clk 0:00:09]}  Rh5 {[%clk 0:00:07]} 51. Kb4 {[%clk 0:00:08]}  Kxe3 {[%clk 0:00:06]} 52. Kxa4 {[%clk 0:00:09]}  e4 {[%clk 0:00:07]} 53. Kb3 {[%clk 0:00:09]}  Rxh3 {[%clk 0:00:05]} 54. Rxg5 {[%clk 0:00:08]}  Kf4+ {[%clk 0:00:05]} 0-1


[Site "https://www.chess.com"]